[Event "Fagernes Chess Open 2025"]
[Site "Fagernes"]
[Date "2025.04.18"]
[Round "7.7"]
[White "Kuzmenko, Mykhailo"]
[Black "Solbu, August"]
[Result "0-1"]
[Annotator "NA"]
[ECO "D02"]
[WhiteElo "1747"]
[BlackElo "1887"]
[PlyCount "104"]
[EventDate "2025.04.12"]
[EventCountry "NOR"]
[SourceTitle "playchess.com"]
[Source "ChessBase"]
[SourceQuality "1"]
[TimeControl "40/6000+30:2400+30"]

1. d4 {[%emt 0:00:02]} d5 {[%emt 0:00:01]} 2. Bf4 {[%emt 0:00:08]} Nf6 {[%emt 0:00:06]} 3. e3 {[%emt 0:00:08]} c5 {[%emt 0:00:05]} 4. Nf3 {[%emt 0:00:21]} Nc6 {[%emt 0:00:11]} 5. c3 {[%emt 0:02:16]} Qb6 {[%emt 0:00:11]} 6. dxc5 {[%emt 0:01:36]} Qxb2 {[%emt 0:00:52]} 7. Nbd2 {[%emt 0:00:26]} Qxc3 {[%emt 0:05:45]} 8. Rc1 {[%emt 0:00:39]} Qa5 {[%emt 0:01:00]} 9. Qb3 {[%emt 0:09:57]} e6 {[%emt 0:02:47]} 10. Bd3 {[%emt 0:08:19]} Bxc5 {[%emt 0:04:19]} 11. O-O {[%emt 0:00:27]} O-O {[%emt 0:02:33]} 12. Qb1 {[%emt 0:09:53]} Be7 {[%emt 0:07:27]} 13. e4 {[%emt 0:20:08]} Nb4 {[%emt 0:09:17]} 14. Nb3 {[%emt 0:12:47]} Qxa2 {[%emt 0:01:09]} 15. e5 {[%emt 0:03:14]} Qxb1 {[%emt 0:00:32]} 16. Bxb1 {[%emt 0:00:12]} Nd7 {[%emt 0:01:29]} 17. Nfd4 {[%emt 0:04:19]} Nb8 {[%emt 0:15:29]} 18. Bd2 {[%emt 0:14:12]} N4a6 {[%emt 0:17:18]} 19. Nb5 {[%emt 0:02:55]} Nc6 {[%emt 0:05:10]} 20. f4 {[%emt 0:00:26]} Bd7 {[%emt 0:01:51]} 21. Be3 {[%emt 0:03:54]} Rfc8 {[%emt 0:02:40]} 22. Rfd1 {[%emt 0:01:04]} Nc7 {[%emt 0:01:49]} 23. Nxc7 {[%emt 0:04:43]} Rxc7 {[%emt 0:00:02]} 24. Nc5 {[%emt 0:00:57]} Bxc5 {[%emt 0:00:54]} 25. Bxc5 {[%emt 0:00:39]} Na5 {[%emt 0:00:52]} 26. Bd6 {[%emt 0:03:07]} Rxc1 {[%emt 0:00:12]} 27. Rxc1 {[%emt 0:00:05]} Nc4 {[%emt 0:00:15]} 28. Bc5 {[%emt 0:01:34]} b6 {[%emt 0:00:29]} 29. Bd4 {[%emt 0:00:03]} a5 {[%emt 0:00:52]} 30. Ba2 {[%emt 0:00:40]} b5 {[%emt 0:00:07]} 31. Kf2 {[%emt 0:00:32]} Rc8 {[%emt 0:00:26]} 32. Ke2 {[%emt 0:00:21]} b4 {[%emt 0:00:12]} 33. Kd3 {[%emt 0:01:50]} Bb5 {[%emt 0:00:02]} 34. Bxc4 {[%emt 0:00:26]} dxc4+ {[%emt 0:00:08]} 35. Kc2 {[%emt 0:00:15]} Ba4+ {[%emt 0:00:13]} 36. Kb2 {[%emt 0:00:01]} c3+ {[%emt 0:00:13]} 37. Kb1 {[%emt 0:00:09]} Rd8 {[%emt 0:00:29]} 38. Bb6 {[%emt 0:00:12]} Rd2 {[%emt 0:00:15]} 39. Bxa5 {[%emt 0:00:10]} Rxg2 {[%emt 0:00:11]} 40. Bxb4 {[%emt 0:00:15]} Rb2+ {[%emt 0:00:08]} 41. Ka1 {[%emt 0:40:22]} Rxb4 {[%emt 0:40:02]} 42. Rxc3 {[%emt 0:00:13]} Rb8 {[%emt 0:00:08]} 43. h4 {[%emt 0:01:43]} Be8 {[%emt 0:00:14]} 44. Rf3 {[%emt 0:00:30]} h5 {[%emt 0:00:13]} 45. f5 {[%emt 0:00:15]} exf5 {[%emt 0:00:07]} 46. Rxf5 {[%emt 0:00:08]} g6 {[%emt 0:00:45]} 47. Rf6 {[%emt 0:00:24]} Bd7 {[%emt 0:00:09]} 48. Rd6 {[%emt 0:00:09]} Be6 {[%emt 0:00:04]} 49. Rd4 {[%emt 0:00:16]} Kf8 {[%emt 0:00:05]} 50. Rb4 {[%emt 0:01:21]} Ra8+ {[%emt 0:00:13]} 51. Kb1 {[%emt 0:00:37]} Ra5 {[%emt 0:00:05]} 52. Re4 {[%emt 0:00:36]} Bf5 {[%emt 0:00:02]} 0-1

[Event "Fagernes Chess Open 2025"]
[Site "Fagernes"]
[Date "2025.04.18"]
[Round "7.8"]
[White "Vollheim, Daniel O"]
[Black "Yilmaz, Kazim"]
[Result "1/2-1/2"]
[Annotator "NA RC"]
[ECO "A25"]
[WhiteElo "1764"]
[BlackElo "1818"]
[PlyCount "90"]
[EventDate "2025.04.12"]
[EventCountry "NOR"]
[SourceTitle "playchess.com"]
[Source "ChessBase"]
[SourceQuality "1"]
[TimeControl "40/6000+30:2400+30"]

1. c4 {[%emt 0:00:02]} e5 {[%emt 0:00:05]} 2. Nc3 {[%emt 0:00:05]} Nf6 {[%emt 0:00:05]} 3. g3 {[%emt 0:00:07]} Nc6 {[%emt 0:00:05]} 4. Bg2 {[%emt 0:00:08]} Bc5 {[%emt 0:00:07]} 5. e3 {[%emt 0:00:13]} d6 {[%emt 0:00:08]} 6. Nge2 {[%emt 0:00:07]} O-O {[%emt 0:00:10]} 7. O-O {[%emt 0:00:10]} Bg4 {[%emt 0:00:07]} 8. d3 {[%emt 0:03:26]} Qd7 {[%emt 0:00:23]} 9. Bd2 {[%emt 0:02:40]} Bh3 {[%emt 0:00:11]} 10. a3 {[%emt 0:09:45]} Bxg2 {[%emt 0:00:08]} 11. Kxg2 {[%emt 0:00:06]} a6 {[%emt 0:00:24]} 12. Qc2 {[%emt 0:02:33]} Rad8 {[%emt 0:00:43]} 13. Rad1 {[%emt 0:03:38]} d5 {[%emt 0:01:06]} 14. cxd5 {[%emt 0:01:37]} Nxd5 {[%emt 0:00:07]} 15. e4 {[%emt 0:04:03]} Nxc3 {[%emt 0:00:14]} 16. Bxc3 {[%emt 0:00:10]} Nd4 {[%emt 0:00:49]} 17. Nxd4 {[%emt 0:00:45]} Bxd4 {[%emt 0:00:06]} 18. Bxd4 {[%emt 0:00:15]} Qxd4 {[%emt 0:00:22]} 19. Qc3 {[%emt 0:01:30]} Qxc3 {[%emt 0:00:10]} 20. bxc3 {[%emt 0:00:03]} c5 {[%emt 0:00:14]} 21. f4 {[%emt 0:00:49]} f6 {[%emt 0:00:09]} 22. fxe5 {[%emt 0:00:18]} fxe5 {[%emt 0:00:06]} 23. Rxf8+ {[%emt 0:00:44]} Kxf8 {[%emt 0:00:06]} 24. Kf3 {[%emt 0:00:20]} Ke7 {[%emt 0:00:16]} 25. Ke3 {[%emt 0:00:11]} b5 {[%emt 0:00:24]} 26. Rb1 {[%emt 0:03:10]} Rb8 {[%emt 0:00:30]} 27. Rb2 {[%emt 0:08:02]} a5 {[%emt 0:00:27]} 28. Kd2 {[%emt 0:00:18]} Kd6 {[%emt 0:00:51]} 29. Kc2 {[%emt 0:01:28]} Kc6 {[%emt 0:00:11]} 30. Kb3 {[%emt 0:00:15]} Rd8 {[%emt 0:00:52]} 31. Kc2 {[%emt 0:00:34]} Rf8 {[%emt 0:00:20]} 32. Kb3 {[%emt 0:01:05]} Rf3 {[%emt 0:00:42]} 33. Rd2 {[%emt 0:00:27]} a4+ {[%emt 0:01:06]} 34. Kb2 {[%emt 0:01:37]} Kb6 {[%emt 0:00:48]} 35. Ka2 {[%emt 0:03:49]} Ka5 {[%emt 0:00:25]} 36. Kb2 {[%emt 0:13:31]} b4 {[%emt 0:00:52]} 37. axb4+ {[%emt 0:08:49]} cxb4 {[%emt 0:00:08]} 38. cxb4+ {[%emt 0:01:14]} Kxb4 {[%emt 0:00:08]} 39. d4 {[%emt 0:00:24]} exd4 {[%emt 0:00:40]} 40. Rxd4+ {[%emt 0:00:08]} Kb5 {[%emt 0:00:10]} 41. Rd7 {[%emt 0:40:23]} a3+ {[%emt 0:40:59]} 42. Ka2 {[%emt 0:00:15]} Kb4 {[%emt 0:00:10]} 43. Rb7+ {[%emt 0:00:14]} Ka4 {[%emt 0:00:16]} 44. Ra7+ {[%emt 0:00:04]} Kb4 {[%emt 0:00:06]} 45. Rb7+ {[%emt 0:00:06]} Ka4 {[%emt 0:00:05]} 1/2-1/2

[Event "Fagernes Chess Open 2025"]
[Site "Fagernes"]
[Date "2025.04.18"]
[Round "7.9"]
[White "Aroven, Mikael"]
[Black "Sigvaldsen, Sebastian"]
[Result "1-0"]
[Annotator "NA"]
[ECO "D40"]
[WhiteElo "2145"]
[BlackElo "1613"]
[PlyCount "97"]
[EventDate "2025.04.12"]
[EventCountry "NOR"]
[SourceTitle "playchess.com"]
[Source "ChessBase"]
[SourceQuality "1"]
[TimeControl "40/6000+30:2400+30"]

1. Nf3 {[%emt 0:00:29]} e6 {[%emt 0:00:40]} 2. c4 {[%emt 0:00:24]} d5 {[%emt 0:00:40]} 3. e3 {[%emt 0:00:26]} Nf6 {[%emt 0:00:50]} 4. Nc3 {[%emt 0:01:06]} c5 {[%emt 0:01:30]} 5. d4 {[%emt 0:00:21]} Nc6 {[%emt 0:01:39]} 6. a3 {[%emt 0:00:07]} a5 {[%emt 0:03:44]} 7. cxd5 {[%emt 0:01:30]} exd5 {[%emt 0:03:00]} 8. Bb5 {[%emt 0:00:12]} c4 {[%emt 0:07:17]} 9. b3 {[%emt 0:01:17]} cxb3 {[%emt 0:01:27]} 10. Qxb3 {[%emt 0:00:36]} Be6 {[%emt 0:01:45]} 11. Ne5 {[%emt 0:00:41]} Rc8 {[%emt 0:03:12]} 12. Qa4 {[%emt 0:02:19]} Qc7 {[%emt 0:04:29]} 13. Bd2 {[%emt 0:01:00]} Bd6 {[%emt 0:01:58]} 14. f4 {[%emt 0:14:14]} O-O {[%emt 0:05:02]} 15. Bd3 {[%emt 0:00:55]} Rfe8 {[%emt 0:01:49]} 16. O-O {[%emt 0:07:32]} g6 {[%emt 0:07:01]} 17. Rab1 {[%emt 0:10:39]} Na7 {[%emt 0:07:21]} 18. Rfc1 {[%emt 0:00:34]} Qe7 {[%emt 0:02:29]} 19. Rb3 {[%emt 0:10:33]} Ne4 {[%emt 0:05:41]} 20. Bxe4 {[%emt 0:01:46]} dxe4 {[%emt 0:00:09]} 21. d5 {[%emt 0:00:38]} Bf5 {[%emt 0:01:07]} 22. Rcb1 {[%emt 0:05:07]} Bxe5 {[%emt 0:02:24]} 23. fxe5 {[%emt 0:00:14]} Qg5 {[%emt 0:07:59]} 24. Kh1 {[%emt 0:09:29]} Rxe5 {[%emt 0:09:48]} 25. Qd4 {[%emt 0:01:34]} Bg4 {[%emt 0:00:31]} 26. Rf1 {[%emt 0:02:07]} Qh5 {[%emt 0:05:51]} 27. Nxe4 {[%emt 0:05:53]} Kf8 {[%emt 0:02:24]} 28. Nf6 {[%emt 0:00:51]} Rf5 {[%emt 0:00:29]} 29. Rbb1 {[%emt 0:01:13]} Qh4 {[%emt 0:01:52]} 30. Nxg4 {[%emt 0:02:33]} Rh5 {[%emt 0:00:29]} 31. Qh8+ {[%emt 0:01:48]} Ke7 {[%emt 0:00:17]} 32. Rxb7+ {[%emt 0:02:37]} Kd6 {[%emt 0:00:15]} 33. Qd4 {[%emt 0:03:22]} Rxd5 {[%emt 0:01:50]} 34. Rf6+ {[%emt 0:00:58]} Qxf6 {[%emt 0:00:29]} 35. Qxf6+ {[%emt 0:00:07]} Kc5 {[%emt 0:00:07]} 36. Qb6+ {[%emt 0:01:03]} Kc4 {[%emt 0:00:12]} 37. Qb3+ {[%emt 0:01:42]} Kc5 {[%emt 0:00:11]} 38. Rxa7 {[%emt 0:01:28]} Rcd8 {[%emt 0:00:50]} 39. Rxa5+ {[%emt 0:00:13]} Kc6 {[%emt 0:00:10]} 40. Qc4+ {[%emt 0:00:13]} Kb7 {[%emt 0:00:17]} 41. Rxd5 {[%emt 0:40:09]} Rxd5 {[%emt 0:40:24]} 42. Qxd5+ {[%emt 0:00:05]} Kc7 {[%emt 0:00:05]} 43. Ba5+ {[%emt 0:00:09]} Kb8 {[%emt 0:00:14]} 44. Qd8+ {[%emt 0:00:16]} Kb7 {[%emt 0:00:09]} 45. Qb6+ {[%emt 0:00:05]} Ka8 {[%emt 0:00:06]} 46. Qc6+ {[%emt 0:01:11]} Kb8 {[%emt 0:00:11]} 47. Bc7+ {[%emt 0:00:06]} Ka7 {[%emt 0:00:06]} 48. Qb6+ {[%emt 0:00:06]} Ka8 {[%emt 0:00:05]} 49. Qb8# {[%emt 0:00:04]} 1-0

[Event "Fagernes Chess Open 2025"]
[Site "Fagernes"]
[Date "2025.04.18"]
[Round "7.10"]
[White "Stokhaug, Jon Arne"]
[Black "Lien, Benjamin"]
[Result "1-0"]
[Annotator "NA"]
[ECO "A29"]
[WhiteElo "1871"]
[BlackElo "1733"]
[PlyCount "69"]
[EventDate "2025.04.12"]
[EventCountry "NOR"]
[SourceTitle "playchess.com"]
[Source "ChessBase"]
[SourceQuality "1"]
[TimeControl "40/6000+30:2400+30"]

1. c4 e5 2. Nc3 Nf6 3. g3 d5 4. cxd5 Nxd5 5. Bg2 Nb6 6. Nf3 Nc6 7. O-O Bf5 8. d3 Be7 9. a3 O-O 10. b4 a6 11. Bb2 Re8 12. Rc1 {[%emt 0:36:40]} Bf8 {[%emt 0:23:30]} 13. Nd2 {[%emt 0:00:30]} Qc8 {[%emt 0:00:30]} 14. Re1 {[%emt 0:00:30]} Qe6 {[%emt 0:00:30]} 15. Nce4 {[%emt 0:00:30]} Rad8 {[%emt 0:00:30]} 16. Qb3 {[%emt 0:00:30]} Qg6 {[%emt 0:00:30]} 17. Qc2 {[%emt 0:00:30]} Be6 {[%emt 0:00:30]} 18. Nc5 {[%emt 0:00:30]} Bxc5 {[%emt 0:00:30]} 19. Qxc5 {[%emt 0:00:30]} Na4 {[%emt 0:00:30]} 20. Qc2 {[%emt 0:00:30]} Nxb2 {[%emt 0:00:30]} 21. Qxb2 {[%emt 0:00:30]} f5 {[%emt 0:00:30]} 22. Bxc6 {[%emt 0:00:30]} bxc6 {[%emt 0:00:30]} 23. Rxc6 {[%emt 0:00:30]} Qg5 {[%emt 0:00:30]} 24. Rc5 {[%emt 0:00:30]} Rd5 {[%emt 0:00:30]} 25. Nf3 {[%emt 0:00:30]} Qh5 {[%emt 0:00:30]} 26. Rxc7 {[%emt 0:00:30]} f4 {[%emt 0:00:30]} 27. Rec1 {[%emt 0:00:30]} Bg4 {[%emt 0:00:30]} 28. Ne1 {[%emt 0:00:30]} Bxe2 {[%emt 0:00:30]} 29. Rc8 {[%emt 0:00:30]} f3 {[%emt 0:00:30]} 30. Qb3 {[%emt 0:00:30]} Qh3 {[%emt 0:00:30]} 31. Qxd5+ {[%emt 0:00:30]} Kf8 {[%emt 0:00:30]} 32. Qd6+ {[%emt 0:00:30]} Kg8 {[%emt 0:00:30]} 33. Rxe8+ {[%emt 0:00:30]} Kf7 {[%emt 0:00:30]} 34. Re7+ {[%emt 0:00:30]} Kf8 {[%emt 0:00:30]} 35. Qd8# {[%emt 0:00:30]} 1-0

[Event "Fagernes Chess Open 2025"]
[Site "Fagernes"]
[Date "2025.04.18"]
[Round "7.11"]
[White "Lang, Gusztav Jr"]
[Black "Brattgjerd, August Minh"]
[Result "0-1"]
[Annotator "NA"]
[ECO "C00"]
[WhiteElo "1729"]
[BlackElo "1845"]
[PlyCount "102"]
[EventDate "2025.04.12"]
[EventCountry "NOR"]
[SourceTitle "playchess.com"]
[Source "ChessBase"]
[SourceQuality "1"]
[TimeControl "40/6000+30:2400+30"]

1. e4 {[%emt 0:02:25]} e6 {[%emt 0:00:05]} 2. Nf3 {[%emt 0:01:53]} d5 {[%emt 0:00:08]} 3. exd5 {[%emt 0:00:14]} exd5 {[%emt 0:00:13]} 4. Bb5+ {[%emt 0:00:15]} c6 {[%emt 0:00:18]} 5. Be2 {[%emt 0:00:14]} Bd6 {[%emt 0:00:20]} 6. d4 {[%emt 0:00:11]} Ne7 {[%emt 0:00:17]} 7. Bg5 {[%emt 0:01:27]} f6 {[%emt 0:00:35]} 8. Bh4 {[%emt 0:00:11]} O-O {[%emt 0:00:08]} 9. Bg3 {[%emt 0:06:34]} Nf5 {[%emt 0:00:57]} 10. Bxd6 {[%emt 0:01:42]} Nxd6 {[%emt 0:00:09]} 11. Nbd2 {[%emt 0:01:20]} Qb6 {[%emt 0:01:22]} 12. b3 {[%emt 0:04:28]} Bf5 {[%emt 0:04:12]} 13. O-O {[%emt 0:05:20]} Nb5 {[%emt 0:06:37]} 14. Bxb5 {[%emt 0:09:37]} Qxb5 {[%emt 0:01:36]} 15. c4 {[%emt 0:00:51]} dxc4 {[%emt 0:00:27]} 16. bxc4 {[%emt 0:00:30]} Qa6 {[%emt 0:00:35]} 17. Re1 {[%emt 0:01:00]} Nd7 {[%emt 0:01:16]} 18. Qb3 {[%emt 0:01:57]} Rfe8 {[%emt 0:02:34]} 19. c5+ {[%emt 0:07:04]} Kf8 {[%emt 0:03:15]} 20. Nh4 {[%emt 0:10:04]} Bd3 {[%emt 0:03:42]} 21. Re6 {[%emt 0:00:49]} g5 {[%emt 0:04:11]} 22. Nhf3 {[%emt 0:21:11]} Bg6 {[%emt 0:03:29]} 23. Rae1 {[%emt 0:06:13]} Bf7 {[%emt 0:03:12]} 24. Rxe8+ {[%emt 0:01:13]} Rxe8 {[%emt 0:00:37]} 25. Rxe8+ {[%emt 0:00:08]} Kxe8 {[%emt 0:00:23]} 26. Qe3+ {[%emt 0:00:50]} Kf8 {[%emt 0:01:59]} 27. h4 {[%emt 0:08:31]} h6 {[%emt 0:01:02]} 28. hxg5 {[%emt 0:00:20]} hxg5 {[%emt 0:00:13]} 29. Ne4 {[%emt 0:02:06]} Qxa2 {[%emt 0:06:15]} 30. Nd6 {[%emt 0:02:38]} b5 {[%emt 0:03:25]} 31. Nxg5 {[%emt 0:07:30]} fxg5 {[%emt 0:02:10]} 32. Qxg5 {[%emt 0:00:09]} Qe6 {[%emt 0:02:36]} 33. Qd8+ {[%emt 0:01:00]} Kg7 {[%emt 0:07:03]} 34. Qg5+ {[%emt 0:00:22]} Qg6 {[%emt 0:06:29]} 35. Nf5+ {[%emt 0:01:36]} Kh7 {[%emt 0:00:54]} 36. Qh4+ {[%emt 0:00:41]} Qh5 {[%emt 0:00:42]} 37. Qf4 {[%emt 0:03:23]} Nf6 {[%emt 0:02:52]} 38. Ng3 {[%emt 0:01:35]} Qh6 {[%emt 0:02:45]} 39. Qc7 {[%emt 0:00:54]} Qc1+ {[%emt 0:01:48]} 40. Nf1 {[%emt 0:01:07]} Kg6 {[%emt 0:01:57]} 41. Qg3+ {[%emt 0:01:23]} Qg5 {[%emt 0:00:18]} 42. Qd3+ {[%emt 0:02:09]} Kh6 {[%emt 0:03:06]} 43. Qh3+ {[%emt 0:01:45]} Kg7 {[%emt 0:04:20]} 44. Ne3 {[%emt 0:02:30]} Nd5 {[%emt 0:03:48]} 45. Nf5+ {[%emt 0:01:26]} Kg6 {[%emt 0:05:32]} 46. Nh4+ {[%emt 0:00:59]} Kf6 {[%emt 0:00:30]} 47. Nf3 {[%emt 0:03:40]} Qc1+ {[%emt 0:01:25]} 48. Kh2 {[%emt 0:00:03]} Qf4+ {[%emt 0:00:13]} 49. Kg1 {[%emt 0:00:26]} Kg7 {[%emt 0:02:22]} 50. Qd7 {[%emt 0:02:14]} a5 {[%emt 0:03:58]} 51. Qxc6 {[%emt 0:00:47]} Qc1+ {[%emt 0:00:15]} 0-1

[Event "Fagernes Chess Open 2025"]
[Site "Fagernes"]
[Date "2025.04.18"]
[Round "7.12"]
[White "Jorgensen, Catherine"]
[Black "Rynning, Rune Kleiven"]
[Result "1-0"]
[Annotator "NA"]
[ECO "B90"]
[WhiteElo "1609"]
[BlackElo "1776"]
[PlyCount "85"]
[EventDate "2025.04.12"]
[EventCountry "NOR"]
[SourceTitle "playchess.com"]
[Source "ChessBase"]
[SourceQuality "1"]
[TimeControl "40/6000+30:2400+30"]

1. e4 {[%emt 0:00:07]} c5 {[%emt 0:00:16]} 2. Nf3 {[%emt 0:00:06]} d6 {[%emt 0:02:35]} 3. d4 {[%emt 0:00:10]} cxd4 {[%emt 0:00:10]} 4. Nxd4 {[%emt 0:00:06]} Nf6 {[%emt 0:00:08]} 5. Nc3 {[%emt 0:00:04]} a6 {[%emt 0:01:14]} 6. f3 {[%emt 0:01:12]} h5 {[%emt 0:00:21]} 7. h4 {[%emt 0:04:31]} e5 {[%emt 0:05:02]} 8. Nb3 {[%emt 0:00:30]} Be6 {[%emt 0:00:13]} 9. Be3 {[%emt 0:01:04]} Nbd7 {[%emt 0:00:08]} 10. Qd2 {[%emt 0:06:00]} Rc8 {[%emt 0:00:08]} 11. Nd5 {[%emt 0:02:14]} Bxd5 {[%emt 0:01:10]} 12. exd5 {[%emt 0:00:09]} Nb6 {[%emt 0:00:17]} 13. O-O-O {[%emt 0:00:38]} Nbxd5 {[%emt 0:07:45]} 14. Bg5 {[%emt 0:08:18]} Qc7 {[%emt 0:06:24]} 15. Bd3 {[%emt 0:02:25]} Be7 {[%emt 0:20:15]} 16. Rhe1 {[%emt 0:11:17]} O-O {[%emt 0:03:26]} 17. Bxf6 {[%emt 0:09:15]} Nxf6 {[%emt 0:00:45]} 18. f4 {[%emt 0:17:07]} Ng4 {[%emt 0:08:25]} 19. fxe5 {[%emt 0:06:11]} dxe5 {[%emt 0:07:21]} 20. Bf5 {[%emt 0:03:18]} Bxh4 {[%emt 0:06:43]} 21. Rh1 {[%emt 0:00:04]} Bg3 {[%emt 0:01:13]} 22. Kb1 {[%emt 0:02:49]} Rcd8 {[%emt 0:06:27]} 23. Qe2 {[%emt 0:00:10]} Rxd1+ {[%emt 0:00:28]} 24. Rxd1 {[%emt 0:00:16]} Nf6 {[%emt 0:01:17]} 25. Nc1 {[%emt 0:04:23]} g6 {[%emt 0:08:21]} 26. Qf3 {[%emt 0:05:14]} Bf4 {[%emt 0:03:55]} 27. Bd3 {[%emt 0:02:28]} Re8 {[%emt 0:03:20]} 28. g3 {[%emt 0:03:44]} e4 {[%emt 0:02:46]} 29. Bxe4 {[%emt 0:01:59]} Rxe4 {[%emt 0:04:12]} 30. gxf4 {[%emt 0:01:53]} Rxf4 {[%emt 0:03:04]} 31. Qg3 {[%emt 0:01:45]} Ne4 {[%emt 0:00:49]} 32. Qe3 {[%emt 0:01:35]} Rg4 {[%emt 0:01:15]} 33. Nd3 {[%emt 0:02:48]} b5 {[%emt 0:02:27]} 34. Nb4 {[%emt 0:02:10]} Qc5 {[%emt 0:01:09]} 35. Qe1 {[%emt 0:02:01]} a5 {[%emt 0:00:36]} 36. Nd3 {[%emt 0:01:20]} Qb6 {[%emt 0:00:08]} 37. Ne5 {[%emt 0:00:20]} Rf4 {[%emt 0:02:23]} 38. Nd3 {[%emt 0:00:15]} Rg4 {[%emt 0:00:02]} 39. Ne5 {[%emt 0:00:14]} Nf2 {[%emt 0:00:52]} 40. Nd7 {[%emt 0:03:01]} Qa7 {[%emt 0:02:26]} 41. Qe8+ {[%emt 0:40:10]} Kg7 {[%emt 0:00:49]} 42. Qf8+ {[%emt 0:00:00]} Kh7 {[%emt 0:00:55]} 43. Nf6# {[%emt 0:01:47]} 1-0

[Event "Fagernes Chess Open 2025"]
[Site "Fagernes"]
[Date "2025.04.18"]
[Round "7.13"]
[White "Lysen, Terje Kevin G"]
[Black "Gilsdottir, Sara"]
[Result "1-0"]
[Annotator "NA"]
[ECO "B14"]
[WhiteElo "1667"]
[BlackElo "1738"]
[PlyCount "129"]
[EventDate "2025.04.12"]
[EventCountry "NOR"]
[SourceTitle "playchess.com"]
[Source "ChessBase"]
[SourceQuality "1"]
[TimeControl "40/6000+30:2400+30"]

1. e4 {[%emt 0:00:01]} c6 {[%emt 0:00:06]} 2. d4 {[%emt 0:00:03]} d5 {[%emt 0:00:04]} 3. exd5 {[%emt 0:00:09]} cxd5 {[%emt 0:00:09]} 4. c4 {[%emt 0:00:06]} Nf6 {[%emt 0:00:34]} 5. Nc3 {[%emt 0:00:16]} e6 {[%emt 0:10:04]} 6. Nf3 {[%emt 0:00:24]} Be7 {[%emt 0:01:10]} 7. Bd3 {[%emt 0:01:33]} O-O {[%emt 0:00:56]} 8. O-O {[%emt 0:00:16]} b6 {[%emt 0:02:30]} 9. Re1 {[%emt 0:06:53]} Bb7 {[%emt 0:06:09]} 10. Bf4 {[%emt 0:03:58]} Nbd7 {[%emt 0:02:20]} 11. Rc1 {[%emt 0:04:30]} Rc8 {[%emt 0:04:40]} 12. b3 {[%emt 0:07:49]} Re8 {[%emt 0:07:47]} 13. cxd5 {[%emt 0:06:46]} Nxd5 {[%emt 0:15:19]} 14. Nxd5 {[%emt 0:01:54]} Bxd5 {[%emt 0:01:41]} 15. Qd2 {[%emt 0:07:11]} Bxf3 {[%emt 0:05:49]} 16. gxf3 {[%emt 0:00:14]} Nf6 {[%emt 0:02:20]} 17. Bb5 {[%emt 0:09:07]} Rf8 {[%emt 0:03:47]} 18. Rxc8 {[%emt 0:01:51]} Qxc8 {[%emt 0:03:27]} 19. Rc1 {[%emt 0:00:13]} Qd8 {[%emt 0:03:25]} 20. Rc7 {[%emt 0:02:25]} a5 {[%emt 0:04:40]} 21. Rb7 {[%emt 0:09:34]} Bb4 {[%emt 0:01:51]} 22. Qd3 {[%emt 0:01:34]} Nd5 {[%emt 0:01:29]} 23. Bg3 {[%emt 0:00:28]} Qg5 {[%emt 0:02:26]} 24. Bc4 {[%emt 0:05:49]} Nf4 {[%emt 0:04:38]} 25. Qe4 {[%emt 0:00:30]} Nh5 {[%emt 0:07:56]} 26. Rxb6 {[%emt 0:14:19]} Qc1+ {[%emt 0:04:57]} 27. Kg2 {[%emt 0:00:07]} Nxg3 {[%emt 0:02:45]} 28. hxg3 {[%emt 0:00:08]} Qb2 {[%emt 0:00:32]} 29. a4 {[%emt 0:11:33]} Rd8 {[%emt 0:01:25]} 30. Rb7 {[%emt 0:00:49]} Qxd4 {[%emt 0:08:23]} 31. Qxd4 {[%emt 0:00:08]} Rxd4 {[%emt 0:00:04]} 32. f4 {[%emt 0:00:07]} Kf8 {[%emt 0:00:23]} 33. f5 {[%emt 0:00:37]} Re4 {[%emt 0:02:00]} 34. fxe6 {[%emt 0:02:21]} fxe6 {[%emt 0:00:20]} 35. Bd3 {[%emt 0:00:30]} Rd4 {[%emt 0:00:50]} 36. Bxh7 {[%emt 0:00:41]} Rd2 {[%emt 0:00:14]} 37. Bg6 {[%emt 0:00:40]} Bc5 {[%emt 0:01:11]} 38. Rf7+ {[%emt 0:00:08]} Kg8 {[%emt 0:00:05]} 39. Rf3 {[%emt 0:01:28]} e5 {[%emt 0:00:30]} 40. Be4 {[%emt 0:07:30]} Rd4 {[%emt 0:00:46]} 41. Bc6 {[%emt 0:41:08]} Kh7 {[%emt 0:03:51]} 42. Rf5 {[%emt 0:00:00]} Bd6 {[%emt 0:01:47]} 43. f3 {[%emt 0:00:00]} Kg6 {[%emt 0:01:21]} 44. Be4 {[%emt 0:00:00]} Kh6 {[%emt 0:00:43]} 45. g4 {[%emt 0:00:00]} g6 {[%emt 0:02:56]} 46. Rf6 {[%emt 0:00:00]} Rxe4 {[%emt 0:00:32]} 47. fxe4 {[%emt 0:00:00]} Bb4 {[%emt 0:00:17]} 48. Kf3 {[%emt 0:00:00]} Kg5 {[%emt 0:00:23]} 49. Re6 {[%emt 0:00:00]} Bc3 {[%emt 0:00:33]} 50. Rc6 {[%emt 0:00:00]} Bb4 {[%emt 0:00:52]} 51. Rc4 {[%emt 0:00:00]} Bd2 {[%emt 0:01:29]} 52. Ke2 {[%emt 0:00:00]} Bf4 {[%emt 0:00:20]} 53. Rc5 {[%emt 0:00:00]} Kxg4 {[%emt 0:00:48]} 54. Rxa5 {[%emt 0:00:00]} Kh3 {[%emt 0:00:50]} 55. Ra6 {[%emt 0:00:00]} g5 {[%emt 0:01:08]} 56. Rg6 {[%emt 0:00:00]} g4 {[%emt 0:00:45]} 57. a5 {[%emt 0:00:00]} g3 {[%emt 0:00:26]} 58. a6 {[%emt 0:00:00]} g2 {[%emt 0:00:15]} 59. a7 {[%emt 0:00:00]} Bg3 {[%emt 0:00:35]} 60. a8=Q {[%emt 0:00:00]} g1=Q {[%emt 0:00:31]} 61. Qh8+ {[%emt 0:00:00]} Kg2 {[%emt 0:00:12]} 62. Rxg3+ {[%emt 0:00:00]} Kxg3 {[%emt 0:00:24]} 63. Qg7+ {[%emt 0:00:00]} Kh2 {[%emt 0:00:07]} 64. Qxg1+ {[%emt 0:00:00]} Kxg1 {[%emt 0:00:09]} 65. b4 {[%emt 0:00:00]} 1-0

[Event "Fagernes Chess Open 2025"]
[Site "Fagernes"]
[Date "2025.04.18"]
[Round "7.14"]
[White "Odden, Jan Ove"]
[Black "Wen, Liana"]
[Result "1-0"]
[Annotator "NA"]
[ECO "B76"]
[WhiteElo "1720"]
[BlackElo "1404"]
[PlyCount "57"]
[EventDate "2025.04.12"]
[EventCountry "NOR"]
[SourceTitle "playchess.com"]
[Source "ChessBase"]
[SourceQuality "1"]
[TimeControl "40/6000+30:2400+30"]

1. e4 {[%emt 0:00:06]} c5 {[%emt 0:00:37]} 2. Nf3 {[%emt 0:00:06]} d6 {[%emt 0:00:38]} 3. d4 {[%emt 0:00:06]} cxd4 {[%emt 0:00:39]} 4. Nxd4 {[%emt 0:00:09]} Nf6 {[%emt 0:01:26]} 5. Nc3 {[%emt 0:00:16]} g6 {[%emt 0:01:01]} 6. Be3 {[%emt 0:00:33]} Bg7 {[%emt 0:00:35]} 7. f3 {[%emt 0:00:14]} O-O {[%emt 0:01:24]} 8. Qd2 {[%emt 0:00:18]} Nc6 {[%emt 0:00:12]} 9. O-O-O {[%emt 0:00:24]} d5 {[%emt 0:00:31]} 10. exd5 {[%emt 0:05:32]} Nxd4 {[%emt 0:01:51]} 11. Bxd4 {[%emt 0:01:54]} a6 {[%emt 0:03:39]} 12. g4 {[%emt 0:03:19]} b5 {[%emt 0:03:55]} 13. g5 {[%emt 0:09:12]} b4 {[%emt 0:01:29]} 14. Ne4 {[%emt 0:02:21]} Nxe4 {[%emt 0:05:54]} 15. fxe4 {[%emt 0:00:34]} Qa5 {[%emt 0:02:29]} 16. Kb1 {[%emt 0:01:42]} f6 {[%emt 0:02:52]} 17. gxf6 {[%emt 0:05:21]} exf6 {[%emt 0:02:58]} 18. Be2 {[%emt 0:00:46]} Re8 {[%emt 0:04:43]} 19. Bf3 {[%emt 0:01:49]} Qb5 {[%emt 0:00:49]} 20. h4 {[%emt 0:02:11]} h5 {[%emt 0:02:04]} 21. Rhg1 {[%emt 0:00:50]} f5 {[%emt 0:26:29]} 22. Bxg7 {[%emt 0:02:28]} Kxg7 {[%emt 0:02:28]} 23. Qg5 {[%emt 0:00:39]} Qb6 {[%emt 0:01:46]} 24. Bxh5 {[%emt 0:00:34]} Rxe4 {[%emt 0:10:10]} 25. Bxg6 {[%emt 0:04:46]} Kf8 {[%emt 0:03:01]} 26. d6 {[%emt 0:04:29]} Bd7 {[%emt 0:02:59]} 27. Qh6+ {[%emt 0:00:40]} Kg8 {[%emt 0:00:17]} 28. Qh7+ {[%emt 0:00:17]} Kf8 {[%emt 0:00:15]} 29. Qf7# {[%emt 0:00:09]} 1-0